[Event "10th Amsterdam Science Park 2022"]
[Site "Amsterdam"]
[Date "2022.07.24"]
[Round "7.5"]
[White "Bruil, Rembrandt"]
[Black "Van Baar, Esper"]
[Result "1-0"]
[ECO "A46"]
[WhiteElo "2204"]
[BlackElo "2281"]
[Annotator "TA"]
[PlyCount "81"]
[EventDate "2022.07.18"]
[EventCountry "NED"]
[SourceTitle "playchess.com"]
[Source "ChessBase"]
[SourceQuality "1"]
[TimeControl "5400+30"]

{[%evp 12,81,16,-16,30,24,27,-8,29,31,32,16,22,23,12,16,56,66,56,37,102,129,99,103,93,56,99,90,88,86,102,104,88,48,42,0,0,0,14,0,0,0,9,7,38,0,52,63,60,36,201,206,206,219,210,204,204,204,343,330,385,385,385,385,385,383,383,350,347,351,29983,29983]} 1. d4 {[%emt 0:00:03]} Nf6 {[%emt 0:03:27]} 2. Nf3 {[%emt 0:00:05]} e6 {[%emt 0:01:03]} 3. g3 {[%emt 0:00:15]} b5 {[%emt 0:01:30]} 4. Bg2 {[%emt 0:00:21]} Bb7 {[%emt 0:00:30]} 5. O-O {[%emt 0:00:14]} c5 {[%emt 0:00:54]} 6. c3 {[%emt 0:01:44]} Be7 {[%emt 0:03:21]} 7. Nbd2 {[%emt 0:01:02][%cal Oe2e4,Bb1d2,Bd2b3,Bb3d4][%mdl 32]} d5 {[%emt 0:05:03] A46: 1 d4 Nf6 2 Nf3 e6: Torre, London and Colle Systems.} (7... O-O $142) 8. dxc5 $11 {[%emt 0:12:50]} Bxc5 {[%emt 0:00:12]} 9. Nb3 {[%emt 0:00:03]} Be7 {[%emt 0:02:02] [#] The position is equal.} 10. Nbd4 $146 {[%emt 0:00:16]} ({Predecessor:} 10. Be3 Nbd7 11. Nbd4 a6 12. h3 O-O 13. Nd2 Rb8 14. N4b3 Qc7 15. Rc1 Rfd8 16. Qc2 {½-½ (55) Voelzke,S (2124)-Potthammel,J (2067) Rheda Wiedenbrueck 2001}) 10... a6 {[%emt 0:02:43]} 11. a4 {[%emt 0:00:42]} b4 {[%emt 0:01:15]} 12. cxb4 {[%emt 0:02:37]} Bxb4 {[%emt 0:00:38]} 13. Bd2 {[%emt 0:00:29]} Qe7 {[%emt 0:07:32]} 14. Bxb4 {[%emt 0:04:17]} Qxb4 {[%emt 0:00:09]} 15. Qb3 {[%emt 0:09:11]} a5 {[%emt 0:03:13]} (15... Nc6 $14) 16. Qxb4 {[%emt 0:00:21]} axb4 {[%emt 0:00:04]} 17. Rfc1 {[%emt 0:01:32]} Na6 {[%emt 0:01:16] Against Rc7} 18. e3 {[%emt 0:14:49]} Nd7 {[%emt 0:06:08]} 19. Bf1 {[%emt 0:04:31]} Ndc5 {[%emt 0:05:58]} 20. Ne5 {[%emt 0:06:31]} f6 {[%emt 0:21:23]} 21. Bxa6 {[%emt 0:13:48]} Nxa6 {[%emt 0:01:49]} 22. Nd3 {[%emt 0:00:12] White is much more active. The black rooks are badly placed. Pair of Knights!} Kd7 {[%emt 0:02:05]} 23. Nc5+ {[%emt 0:02:19]} Nxc5 {[%emt 0:00:13]} 24. Rxc5 {[%emt 0:00:02]} e5 {[%emt 0:04:37]} 25. Rb5 $36 {[%emt 0:04:28][%mdl 2048] White has good play.} Rab8 {[%emt 0:18:40]} 26. Nc2 {[%emt 0:00:42]} b3 $1 {[%emt 0:00:42]} 27. Rxb3 {[%emt 0:11:32]} Ba6 {[%emt 0:00:04] Prevents Rd3.} (27... Rhc8 $5 {[%cal Rc8c2]} 28. Rc3 Bc6 $11) 28. Raa3 {[%emt 0:00:19]} Bc4 {[%emt 0:02:44]} (28... Rhc8 $11 29. Rxb8 Rxb8) 29. Rxb8 $1 $14 {[%emt 0:00:47]} Rxb8 {[%emt 0:00:03][%mdl 4096] Endgame KRB-KRN} 30. b4 {[%emt 0:00:22][%cal Bb2b4,Bb4b5][%mdl 32]} d4 $2 {[%emt 0:00:39] This move loses the game for Black.} ({Black should play} 30... Be2 $14) 31. exd4 $18 {[%emt 0:00:19]} exd4 {[%emt 0:00:08] [#]} 32. b5 $1 {[%emt 0:00:18]} ({But not} 32. Nxd4 $6 Rxb4 33. Nf5 g6 $14) 32... d3 {[%emt 0:01:39]} 33. Ne3 {[%emt 0:00:19]} d2 {[%emt 0:00:37][%cal Ob8e8] ...Re8! is the strong threat.} 34. Rc3 {[%emt 0:01:47]} Rc8 {[%emt 0:04:36]} (34... Bf7 $142 35. Rd3+ Kc7 36. Rxd2 Ra8 37. Rc2+ Kb8) 35. Rc2 {[%emt 0:00:25]} Bb3 {[%emt 0:00:31]} 36. Rxd2+ {[%emt 0:00:06]} Ke6 {[%emt 0:00:30]} 37. a5 {[%emt 0:08:31][%cal Ba4a5,Ba5a6][%mdl 32]} Rc1+ {[%emt 0:00:03]} 38. Kg2 {[%emt 0:00:07]} Rc5 {[%emt 0:00:04]} 39. Rb2 {[%emt 0:00:51]} Rxb5 {[%emt 0:00:20] [#] aiming for ...Bd5+.} 40. a6 {[%emt 0:00:06]} Bc4 $2 {[%emt 0:01:32]} (40... Bd5+ $18 41. Nxd5 Rxd5) 41. Nxc4 {[%emt 0:00:07] Weighted Error Value: White=0.07 (flawless) /Black=0.50} 1-0

[Event "10th Amsterdam Science Park 2022"]
[Site "Amsterdam"]
[Date "2022.07.24"]
[Round "7.6"]
[White "Vroombout, Enrico"]
[Black "Stolwijk, Colin"]
[Result "0-1"]
[ECO "D15"]
[WhiteElo "2125"]
[BlackElo "2277"]
[Annotator "TA"]
[PlyCount "96"]
[EventDate "2022.07.18"]
[EventCountry "NED"]
[SourceTitle "playchess.com"]
[Source "ChessBase"]
[SourceQuality "1"]
[TimeControl "5400+30"]

{[%evp 9,96,11,18,14,25,33,22,13,10,16,10,-43,-16,-15,0,-17,1,0,3,23,53,50,54,45,62,-3,76,68,69,72,102,65,56,0,0,-26,27,-35,0,-66,-58,-68,-47,-70,-62,-93,-84,-131,-122,-104,0,-73,0,-128,-123,-135,-33,-20,-3,-116,-117,-115,-109,-577,-570,-833,-766,-790,-670,-728,-665,-730,-725,-728,-689,-714,-716,-696,-691,-664,-643,-612,-419,-744,-728,-820,-706,-669,-553]} 1. d4 {[%emt 0:00:01]} Nf6 {[%emt 0:00:08]} 2. c4 {[%emt 0:00:08]} c6 {[%emt 0:00:07]} 3. Nc3 {[%emt 0:00:08]} d5 {[%emt 0:00:06]} 4. Nf3 {[%emt 0:00:07]} a6 {[%emt 0:00:06]} 5. g3 {[%emt 0:00:10]} e6 {[%emt 0:01:25]} 6. Bg2 {[%emt 0:00:58] D15: Slav Defence: 4 Nc3 a6 and gambit lines after 4 Nc3 dxc4.} Nbd7 {[%emt 0:00:45]} 7. O-O {[%emt 0:01:46]} dxc4 {[%emt 0:05:53]} 8. Qc2 {[%emt 0:10:48] The position is equal.} b5 {[%emt 0:04:58]} 9. Rd1 {[%emt 0:03:06]} Bb7 {[%emt 0:04:29]} 10. a4 {[%emt 0:20:58]} (10. Ne5 $11) 10... Bb4 {[%emt 0:05:19]} 11. Ne5 {[%emt 0:08:44]} Nd5 {[%emt 0:01:30]} 12. Ne4 {[%emt 0:07:35] [#]} Nxe5 $146 {[%emt 0:09:13]} (12... a5 {with more complications.} 13. Bd2 O-O 14. Ng5 g6) ({Predecessor:} 12... Qc7 13. Nxd7 Qxd7 14. Nc5 Bxc5 15. dxc5 Qe7 16. e4 Nf6 17. b3 cxb3 18. Qxb3 O-O {½-½ (27) Serna Lara,S (2234)-O'Neill Y Daneiko,J (2071) Almansa 2009}) 13. dxe5 {[%emt 0:00:06]} Qc7 {[%emt 0:00:10]} 14. Bd2 {[%emt 0:08:53]} Be7 {[%emt 0:08:58]} 15. Nd6+ {[%emt 0:03:05]} Bxd6 {[%emt 0:02:18]} 16. exd6 {[%emt 0:00:03]} Qxd6 {[%emt 0:00:13]} 17. Bc3 {[%emt 0:06:51]} ({White should try} 17. axb5 $14 cxb5 18. e4) 17... O-O-O {[%emt 0:28:39]} (17... e5 $1 $11 {keeps the balance.}) 18. Bxg7 $16 {[%emt 0:01:07] This bishop pair is nice.} Rhg8 {[%emt 0:00:03]} 19. Qxh7 {[%emt 0:03:55]} f5 {[%emt 0:01:11]} 20. Bxd5 {[%emt 0:04:18]} cxd5 {[%emt 0:00:19]} 21. Bd4 {[%emt 0:00:04]} (21. Bf6 $1 $14) 21... b4 $1 $11 {[%emt 0:01:20]} 22. Qh6 {[%emt 0:08:37]} f4 {[%emt 0:06:13]} (22... a5 $142) 23. Kf1 {[%emt 0:04:45]} (23. e3 $11) 23... Rdf8 {[%emt 0:04:00][%cal Bd8f8,Bf8f7,Bf7f5,Bf5g5,Bg5g6,Bg6e6][%mdl 32]} 24. Ke1 {[%emt 0:00:50]} (24. Rac1 $11) 24... Rf7 {[%emt 0:02:27]} 25. Qh5 {[%emt 0:00:43]} Rf5 {[%emt 0:00:25]} 26. Qh7 {[%emt 0:00:03]} Rgf8 {[%emt 0:01:10]} 27. g4 {[%emt 0:01:36] [#]} Rg5 {[%emt 0:00:56]} 28. f3 {[%emt 0:00:20]} (28. a5 $142) 28... e5 $17 {[%emt 0:01:06]} 29. Bf2 {[%emt 0:00:11]} Kb8 {[%emt 0:04:47]} (29... Rgg8 $17 {And now ...Rh8 would win.} 30. h4 Kb8) 30. Rac1 {[%emt 0:00:31] [#]} (30. Bh4 $11 Qb6 31. Bxg5 Qg1+ 32. Kd2 Qe3+ 33. Ke1 (33. Kc2 Qxe2+ 34. Kc1 b3 $15) 33... Qg1+ 34. Kd2 Qe3+ 35. Ke1 (35. Kc2 Qxe2+ 36. Rd2 b3+ 37. Kc1 Qe1+ 38. Rd1 Qe2 $15) 35... Qg1+) 30... Rc8 {[%emt 0:01:47]} ({Black should play} 30... Qe6 $1 $17) 31. Bh4 {[%emt 0:01:11]} (31. h4 $11 Rc7 32. Qh8+ Rc8 33. Qh7) 31... Rg6 {[%emt 0:01:03]} 32. Qe7 {[%emt 0:00:05]} Qxe7 {[%emt 0:00:51]} (32... a5 $17 {White must now prevent ...Qxe7.} 33. Qxd6+ Rxd6) 33. Bxe7 $15 {[%emt 0:00:03]} a5 $36 {[%emt 0:00:12][%mdl 2048] Black has some pressure.} 34. h4 {[%emt 0:00:35]} (34. g5 $1 $11) 34... Re6 $17 {[%emt 0:01:00]} 35. Bg5 {[%emt 0:00:13]} d4 {[%emt 0:00:17] Black is more active.} 36. b3 $2 {[%emt 0:04:17][%mdl 8192] This costs White the game.} (36. h5 $17 {is a better chance.}) 36... c3 $19 {[%emt 0:02:47] Threatens to win with ...Bd5.} 37. Rc2 {[%emt 0:00:06]} Bd5 {[%emt 0:00:02]} 38. Rb1 {[%emt 0:00:08]} Rg8 {[%emt 0:00:33] Hoping for ...e4.} 39. Kf2 {[%emt 0:00:27]} Kc7 {[%emt 0:00:39]} 40. Rcc1 {[%emt 0:01:18]} Kd7 {[%emt 0:01:05]} 41. Rc2 {[%emt 0:00:00]} Rc6 {[%emt 0:00:00]} 42. Rcc1 {[%emt 0:00:00]} Rg7 {[%emt 0:00:00]} 43. Rc2 {[%emt 0:00:00]} Bg8 {[%emt 0:00:00] aiming for ...Bh7.} 44. Rcc1 {[%emt 0:00:00]} Rd6 {[%emt 0:00:00]} 45. Ke1 {[%emt 0:00:00]} Kc6 {[%emt 0:00:00]} 46. Kf2 {[%emt 0:00:00]} (46. Rd1 $142) 46... Kc5 {[%emt 0:00:00] Black is clearly winning.} 47. Rd1 {[%emt 0:00:00] [#]} Bxb3 $1 {[%emt 0:00:00][%mdl 512]} 48. Rxb3 {[%emt 0:00:00]} Kc4 {[%emt 0:00:00] Weighted Error Value: White=0.64/Black=0.24 (precise)} 0-1

[Event "10th Amsterdam Science Park 2022"]
[Site "Amsterdam"]
[Date "2022.07.24"]
[Round "7.7"]
[White "Bullen, Alex"]
[Black "Croese, Cor"]
[Result "1-0"]
[ECO "B08"]
[WhiteElo "2106"]
[BlackElo "2173"]
[Annotator "TA"]
[PlyCount "85"]
[EventDate "2022.07.18"]
[EventCountry "NED"]
[SourceTitle "playchess.com"]
[Source "ChessBase"]
[SourceQuality "1"]
[TimeControl "5400+30"]

{[%evp 17,85,38,48,54,72,76,94,94,90,81,90,72,73,70,68,77,66,60,59,60,58,56,58,52,70,54,94,91,110,54,113,118,103,84,80,82,99,81,77,74,63,12,15,12,14,15,96,88,306,318,325,324,377,349,403,400,559,550,2285,2285,11138,4904,1483,2573,29956,29957,29960,12846,29975,29976]} 1. d4 {[%emt 0:00:05]} g6 {[%emt 0:00:03]} 2. e4 {[%emt 0:00:10]} Bg7 {[%emt 0:00:07]} 3. Nf3 {[%emt 0:00:08]} d6 {[%emt 0:00:11]} 4. Nc3 {[%emt 0:00:12]} c6 {[%emt 0:00:10]} 5. a4 {[%emt 0:00:31]} Nf6 {[%emt 0:00:08]} 6. h3 {[%emt 0:00:12]} O-O {[%emt 0:00:35]} 7. Be3 {[%emt 0:00:10]} Nbd7 {[%emt 0:00:21]} 8. Be2 {[%emt 0:00:12]} e5 {[%emt 0:00:12]} 9. dxe5 {[%emt 0:00:08]} dxe5 {[%emt 0:00:07]} 10. Qd6 {[%emt 0:00:13] B08: Pirc Defence: Classical System.} Re8 {[%emt 0:03:05] [#]} 11. Bc4 $1 {[%emt 0:00:08]} Qe7 {[%emt 0:09:04]} 12. Qxe7 {[%emt 0:00:38] 0x0.00144b0bdc0adp-1022s more active pieces. White is better.} Rxe7 {[%emt 0:00:04]} 13. O-O-O {[%emt 0:03:41]} h6 {[%emt 0:01:21] [#]} 14. Nh4 $146 {[%emt 0:07:13]} ({Predecessor:} 14. g4 Nf8 15. Rd8 Re8 16. Rhd1 Ne6 17. Bxe6 Bxe6 18. Rxa8 Rxa8 19. Nxe5 h5 20. Rg1 hxg4 21. Nxg4 {½-½ (45) Schmidt,K (2303)-Hoi,C (2372) Denmark 2012}) 14... Nf8 {[%emt 0:04:53]} 15. Rd8 {[%emt 0:05:13] Black must now prevent Nxg6.} Re8 $1 {[%emt 0:00:20]} 16. Rhd1 {[%emt 0:01:58] Threatens to win with Rxe8.} Be6 {[%emt 0:06:01]} 17. Rxe8 {[%emt 0:01:07]} Nxe8 {[%emt 0:00:04]} 18. Bxe6 {[%emt 0:03:08]} Nxe6 {[%emt 0:00:06]} 19. Rd7 {[%emt 0:00:49]} b6 {[%emt 0:10:01]} 20. Nf3 {[%emt 0:09:47][%cal Oa4a5]} N8c7 {[%emt 0:07:02]} 21. Rd6 {[%emt 0:03:57]} c5 {[%emt 0:01:19]} 22. Nd5 {[%emt 0:03:36]} Nxd5 {[%emt 0:01:39]} 23. Rxd5 {[%emt 0:00:15]} (23. exd5 $16 Rd8 24. Rxd8+ Nxd8 25. Nd2) 23... Nf4 {[%emt 0:07:46]} (23... Kf8 $14) 24. Bxf4 $16 {[%emt 0:00:30]} exf4 {[%emt 0:00:05][%mdl 4096] Endgame KRB-KRN} 25. e5 {[%emt 0:00:47]} Re8 {[%emt 0:00:55]} 26. Kd2 {[%emt 0:01:43]} f6 {[%emt 0:00:49][%cal Rf6e5]} 27. exf6 {[%emt 0:02:40]} Bxf6 {[%emt 0:00:06]} 28. b3 {[%emt 0:00:54]} Kf7 {[%emt 0:02:35]} 29. Rd7+ {[%emt 0:01:05]} (29. Kd3 $1 $14) 29... Re7 $11 {[%emt 0:00:10]} 30. Rxe7+ {[%emt 0:01:29]} Kxe7 {[%emt 0:00:11] KB-KN} 31. Kd3 {[%emt 0:00:43] Strongly threatening Ke4.} g5 {[%emt 0:12:05] [#]} (31... Kd6 $1 $11 {remains equal.}) 32. Kc4 $1 $16 {[%emt 0:02:06]} a6 $2 {[%emt 0:03:49] Loses the game.} (32... Kd6 $16 {was necessary.}) 33. a5 $18 {[%emt 0:00:42]} bxa5 {[%emt 0:00:06]} 34. Kxc5 {[%emt 0:00:17]} Bc3 {[%emt 0:01:20]} 35. Nd4 {[%emt 0:02:46]} Kf6 {[%emt 0:02:46]} 36. Kd5 {[%emt 0:03:01]} h5 {[%emt 0:00:46]} 37. f3 {[%emt 0:00:39][%cal Bf2f3,Bf3g4][%mdl 32]} g4 {[%emt 0:02:54]} 38. hxg4 {[%emt 0:01:07]} hxg4 {[%emt 0:00:05]} 39. fxg4 {[%emt 0:00:18] Threatening mate with Ne2.} Kg5 {[%emt 0:00:18]} 40. Ne2 {[%emt 0:00:26]} Bd2 {[%emt 0:01:04]} 41. c4 {[%emt 0:00:52][%cal Bc2c4,Bc4c5][%mdl 32]} Be3 {[%emt 0:01:07]} 42. c5 {[%emt 0:03:17] White wants to mate with c6.} Kxg4 {[%emt 0:00:07]} 43. Nd4 {[%emt 0:02:10] Weighted Error Value: White=0.06 (flawless) /Black=0.85} 1-0

[Event "10th Amsterdam Science Park 2022"]
[Site "Amsterdam"]
[Date "2022.07.24"]
[Round "7.8"]
[White "Van der Velde, Henk"]
[Black "Baarslag, Ed"]
[Result "0-1"]
[ECO "A13"]
[WhiteElo "2079"]
[BlackElo "2161"]
[Annotator "TA"]
[PlyCount "58"]
[EventDate "2022.07.18"]
[EventCountry "NED"]
[SourceTitle "playchess.com"]
[Source "ChessBase"]
[SourceQuality "1"]
[TimeControl "5400+30"]

{[%evp 9,58,0,0,7,0,6,28,26,16,10,3,3,14,16,19,0,12,0,0,-14,17,13,10,0,4,-87,-80,-70,-74,-54,-70,-52,-83,-47,-50,-61,-47,-45,-38,-327,-318,-1328,-1305,-29969,-29971,-29981,-29982,-29975,-29976,-29976,-29976]} 1. c4 {[%emt 0:00:03]} e6 {[%emt 0:00:31]} 2. g3 {[%emt 0:00:11]} d5 {[%emt 0:00:08]} 3. Bg2 {[%emt 0:00:09]} Nf6 {[%emt 0:00:19]} 4. Nf3 {[%emt 0:00:12]} dxc4 {[%emt 0:00:48]} 5. Qc2 {[%emt 0:00:38]} c5 {[%emt 0:08:05]} 6. Na3 {[%emt 0:00:57][%cal Bb1a3,Ba3c4,Bc4e5][%mdl 32] A13: English Opening: 1...e6.} Nc6 {[%emt 0:02:02]} 7. Nxc4 {[%emt 0:00:39]} Bd7 {[%emt 0:07:45]} 8. O-O {[%emt 0:04:46] [#] White has an edge.} Rc8 $146 {[%emt 0:04:36]} ({Predecessor:} 8... Be7 9. Rd1 Rc8 10. Nce5 O-O 11. Qb3 Qc7 12. Nxd7 Nxd7 13. d4 cxd4 14. Nxd4 Nxd4 15. Rxd4 {1-0 (28) Mueller,A (2260)-Karabalis,H Bruchkoebel 1993}) 9. d3 {[%emt 0:13:09]} b5 {[%emt 0:04:00]} 10. Nce5 {[%emt 0:02:41]} Be7 {[%emt 0:01:27]} 11. e4 {[%emt 0:19:37]} O-O {[%emt 0:02:37]} 12. Bf4 {[%emt 0:03:59]} Qb6 {[%emt 0:03:49]} 13. Rac1 {[%emt 0:06:47]} Rfd8 {[%emt 0:06:19]} 14. Nxc6 {[%emt 0:04:00]} Rxc6 {[%emt 0:04:08]} 15. Ne5 {[%emt 0:06:31]} Rcc8 {[%emt 0:00:33]} 16. Nxd7 {[%emt 0:07:23]} Nxd7 {[%emt 0:01:03][%cal Bf6d7,Bd7e5,Be5g4][%mdl 32]} 17. d4 {[%emt 0:03:47] [#]} (17. Rfd1 $11) 17... g5 $1 $17 {[%emt 0:10:49]} 18. Bd2 {[%emt 0:03:31]} cxd4 {[%emt 0:00:35]} 19. Qxc8 {[%emt 0:00:07]} Rxc8 {[%emt 0:00:07]} 20. Rxc8+ {[%emt 0:00:03]} Kg7 {[%emt 0:00:25]} 21. Rfc1 {[%emt 0:00:40]} Ne5 {[%emt 0:03:08] [#] Prevents R1c6. Threatens to win with ...Nc4.} 22. Re8 $1 {[%emt 0:02:50]} Bf6 {[%emt 0:04:47] ...d3 is the strong threat.} 23. Rcc8 {[%emt 0:04:31] aiming for Rg8+.} h6 {[%emt 0:00:37] Hoping for ...Kh7.} 24. Bb4 $2 {[%emt 0:00:59][%mdl 8192] This costs White the game.} (24. Rh8 $1 $15 Kg6 25. Rcg8+ Bg7 26. h4) 24... d3 $19 {[%emt 0:03:32] Really sharp!} 25. Kf1 $2 {[%emt 0:04:08]} (25. h3 Kg6 26. Rc1) 25... Qd4 {[%emt 0:02:54][%csl LRb2,LRb4] Strongly threatening ...d2.} 26. Bd2 {[%emt 0:04:49]} Ng4 {[%emt 0:03:36][%csl Gg4][%cal Rd4f2] Black mates.} 27. Rg8+ {[%emt 0:00:46]} Kh7 {[%emt 0:00:12][%csl Gg4][%cal Rd4f2]} 28. Rh8+ {[%emt 0:01:05]} Bxh8 {[%emt 0:02:24]} 29. Rxh8+ {[%emt 0:00:06]} Qxh8 {[%emt 0:00:29] Weighted Error Value: White=0.79/Black=0.03 (flawless)} (29... Kxh8 $2 {loses.} 30. Bc3 Nxh2+ 31. Ke1 d2+ 32. Kd1 Qxc3 33. bxc3 $19) 0-1

[Event "10th Amsterdam Science Park 2022"]
[Site "Amsterdam"]
[Date "2022.07.24"]
[Round "7.9"]
[White "Van Nieuwkerk, Ton"]
[Black "Duchene, Rene"]
[Result "0-1"]
[ECO "C02"]
[WhiteElo "2014"]
[BlackElo "2137"]
[Annotator "TA"]
[PlyCount "100"]
[EventDate "2022.07.18"]
[EventCountry "NED"]
[SourceTitle "playchess.com"]
[Source "ChessBase"]
[SourceQuality "1"]
[TimeControl "5400+30"]

{[%evp 19,100,0,0,-26,-7,-4,-8,-19,-17,-28,-22,-68,-53,-97,-97,-110,-96,-135,-120,-120,-104,-133,-105,-100,-103,-88,-95,-144,-134,-139,-52,-52,-52,-74,-52,-52,-52,-52,-52,-58,-61,-163,-52,-212,-229,-314,-306,-305,-297,-297,-281,-266,-263,-386,-361,-354,-273,-311,-293,-387,-293,-388,-294,-375,-289,-393,-387,-459,-345,-372,-289,-793,-791,-783,-541,-736,-750,-824,-817,-771,-535,-29985,-29986]} 1. e4 {[%emt 0:00:03]} e6 {[%emt 0:00:10]} 2. d4 {[%emt 0:00:13]} d5 {[%emt 0:00:04]} 3. e5 {[%emt 0:00:03]} c5 {[%emt 0:00:13]} 4. c3 {[%emt 0:00:14]} Qb6 {[%emt 0:00:10]} 5. Nf3 {[%emt 0:00:47]} Nc6 {[%emt 0:00:07]} 6. a3 {[%emt 0:00:46]} Nh6 {[%emt 0:00:37][%cal Bg8h6,Bh6f5,Bf5e7,Be7g6][%mdl 32]} 7. b4 {[%emt 0:03:46]} cxd4 {[%emt 0:00:08]} 8. cxd4 {[%emt 0:00:06]} Nf5 {[%emt 0:00:17]} 9. Bb2 {[%emt 0:00:13] 9.Be3 might become the main line.} Bd7 {[%emt 0:00:40]} 10. g4 {[%emt 0:01:39]} Nfe7 {[%emt 0:01:13]} 11. Bd3 {[%emt 0:02:57] C02: French: Advance Variation.} Ng6 {[%emt 0:01:15]} 12. Qd2 {[%emt 0:02:33] [#]} Qd8 $146 {[%emt 0:21:16]} ({Predecessor:} 12... Rc8 13. Nc3 Nxd4 14. Nxd4 Qxd4 15. Bxg6 Qxd2+ 16. Kxd2 hxg6 17. f4 Rh3 18. Rac1 a5 {0-1 (35) Zaichenko,D (2104)-Schmidt,T (2272) Chess.com INT 2021}) 13. h4 {[%emt 0:05:11] The position is equal.} h5 $1 {[%emt 0:02:27]} 14. Bxg6 {[%emt 0:05:10]} fxg6 {[%emt 0:00:05]} 15. Qd3 {[%emt 0:00:23]} (15. Qf4 $11) 15... Ne7 $15 {[%emt 0:00:43]} 16. g5 {[%emt 0:10:32]} Nf5 {[%emt 0:00:26]} 17. Nc3 {[%emt 0:00:59]} Be7 {[%emt 0:06:35]} 18. O-O {[%emt 0:16:38]} O-O {[%emt 0:01:41]} 19. Rfc1 {[%emt 0:02:35]} Qb6 {[%emt 0:04:06]} 20. Kg2 {[%emt 0:00:54]} Rfc8 {[%emt 0:00:34]} 21. Ne2 {[%emt 0:02:31]} a5 {[%emt 0:04:20]} 22. Rxc8+ {[%emt 0:05:01]} Rxc8 {[%emt 0:00:30]} 23. Nf4 {[%emt 0:02:04]} ({White should play} 23. Ng3) 23... Kf7 $17 {[%emt 0:05:46]} (23... axb4 24. axb4 Bb5 25. Qb3 $17) 24. Bc3 {[%emt 0:00:12]} a4 {[%emt 0:09:25]} ({Not} 24... axb4 25. axb4 Bb5 26. Qd2 $15) ({Black should try} 24... Qa6 $17 {...Qxd3 is the strong threat.} 25. Qd2 Qc4) 25. Bb2 {[%emt 0:07:13]} Bb5 {[%emt 0:01:40] Active counter play!} 26. Qd2 {[%emt 0:04:18]} Rc4 {[%emt 0:01:51]} 27. Rc1 {[%emt 0:03:21]} Qc6 {[%emt 0:02:05]} 28. Rc3 {[%emt 0:04:26]} Bd8 {[%emt 0:04:09]} 29. Ba1 {[%emt 0:04:02]} Bb6 {[%emt 0:00:21][%cal Rb6d4]} 30. Bb2 {[%emt 0:01:22]} (30. Kh2 $15) 30... Ba6 {[%emt 0:02:21]} (30... Bxd4 $19 31. Nxd4 Rxd4 32. Qxd4 Nxd4 33. Rxc6 Nxc6) 31. Rc1 {[%emt 0:08:29] This move loses the game for White.} (31. Rxc4 $15 Qxc4 32. Qd1) 31... Rxc1 $19 {[%emt 0:06:25]} 32. Bxc1 {[%emt 0:00:18]} Qc4 {[%emt 0:00:16][%cal Rb6d4]} 33. Bb2 {[%emt 0:00:19] [#]} Qf1+ {[%emt 0:04:58]} 34. Kh2 {[%emt 0:00:11]} Bc4 {[%emt 0:01:00][%cal Ba6c4,Bc4b3,Bb3d1][%mdl 32]} 35. Bc3 {[%emt 0:02:46]} Bb3 {[%emt 0:01:15]} 36. Nh3 {[%emt 0:03:02]} (36. Ne1 $142) 36... Bd1 {[%emt 0:02:15] Chess con chili.} 37. Nhg1 {[%emt 0:00:12]} Kg8 {[%emt 0:02:14]} 38. Bb2 {[%emt 0:01:14]} Bb3 {[%emt 0:03:43]} 39. Bc3 {[%emt 0:00:48]} Bc4 {[%emt 0:00:22] Strongly threatening ...Qb1.} 40. Bb2 {[%emt 0:01:43]} Kf8 {[%emt 0:03:40]} 41. Bc3 {[%emt 0:00:00]} Kf7 {[%emt 0:00:00] White must now prevent ...Qb1.} 42. Bb2 {[%emt 0:00:00]} Qb1 {[%emt 0:00:00] Hoping for ...Qe4.} 43. Nh3 {[%emt 0:00:00]} Bd3 {[%emt 0:00:00]} 44. Nhg1 {[%emt 0:00:00]} Be4 {[%emt 0:00:00]} 45. Kh3 $2 {[%emt 0:00:00] [#]} (45. Ne1 Nxh4 46. Kh3) 45... Bxf3 {[%emt 0:00:00]} 46. Nxf3 {[%emt 0:00:00]} Qh1+ {[%emt 0:00:00]} 47. Nh2 {[%emt 0:00:00]} Qe4 {[%emt 0:00:00][%csl LRd4,LRh4]} 48. f4 Bxd4 {[%emt 0:00:00]} 49. Bxd4 {[%emt 0:00:00]} Qxd4 {[%emt 0:00:00]} 50. Qc1 {[%emt 0:00:00]} Qf2 {[%emt 0:00:00] Weighted Error Value: White=0.67/Black=0.34} 0-1